bitfinex/quotes_SOLUSD_20250123
["timestamp","ask_amount","ask_price","bid_price","bid_amount"]
[1737608851545,18.64937191,248.24,248.15,18.64937191]
[1737608851741,19.40487041,248.24,248.15,18.64937191]
[1737608852241,18.64937191,248.2,248.12,4.0302]
[1737608852444,18.64937191,248.26,248.17,18.64937191]
[1737608852634,22.67707191,248.28,248.19,18.64937191]
[1737608854423,22.67707191,248.28,248.19,330.64937191]
[1737608854640,22.67707191,248.28,248.19,18.64937191]
[1737608854844,18.64937191,248.24,248.19,0.063]
[1737608855240,18.64937191,248.26,248.19,0.063]
[1737608856133,10.0743,248.3,248.21,18.64937191]
[1737608856441,33.851184,248.3,248.21,18.64937191]
[1737608856644,10.0743,248.3,248.21,18.64937191]
[1737608857028,18.64937191,248.29,248.21,18.64937191]
[1737608857633,18.64937191,248.29,248.21,330.64937191]
[1737608858551,22.67697191,248.29,248.21,330.64937191]
[1737608859452,18.64937191,248.27,248.19,0.063]
[1737608859642,22.67697191,248.29,248.19,18.71237191]
[1737608860835,18.64937191,248.27,248.19,0.063]
[1737608861044,6.0468,248.3,248.21,18.64937191]
[1737608861349,18.64937191,248.29,248.19,22.74147191]
[1737608862436,27.804584,248.28,248.19,334.74147191]
[1737608863152,18.67937191,248.31,248.21,18.64937191]
[1737608863555,23.776884,248.3,248.21,18.64937191]
[1737608864027,18.64937191,248.29,248.19,22.74147191]
[1737608864730,22.67687191,248.29,248.19,22.74147191]
[1737608864952,18.64937191,248.27,248.19,0.063]
[1737608865135,18.64937191,248.25,248.19,0.063]
[1737608865442,0.75537676,248.27,248.19,0.063]
[1737608865443,18.64937191,248.23,248.19,0.063]
[1737608865853,18.64937191,248.25,248.19,0.063]
[1737608866863,18.64937191,248.23,248.19,0.063]
[1737608868049,18.64937191,248.21,248.19,0.063]
[1737608868247,23.776884,248.2,248.19,0.063]
[1737608868657,18.64937191,248.21,248.19,0.063]
[1737608868953,4.0287,248.22,248.19,0.063]
[1737608869140,18.64937191,248.21,248.19,0.063]
[1737608870055,27.805884,248.2,248.19,0.063]
[1737608870548,18.64937191,248.21,248.19,0.063]
[1737608870737,18.64937191,248.25,248.19,0.063]
[1737608871054,22.67757191,248.25,248.19,0.063]
[1737608871226,23.776884,248.24,248.19,0.063]
[1737608872055,27.805284,248.24,248.19,0.063]
[1737608872428,18.64937191,248.23,248.19,0.063]
[1737608873646,18.64937191,248.21,248.19,0.063]
[1737608874953,22.67817191,248.21,248.19,0.063]
[1737608876759,23.776884,248.2,248.19,0.063]
[1737608879645,35.46296172,248.2,248.19,0.063]
[1737608881559,36.99756172,248.2,248.19,0.063]
[1737608883959,11.68607772,248.24,248.19,0.063]
[1737608884147,11.71607772,248.26,248.19,0.063]
[1737608884862,23.776884,248.25,248.19,0.063]
[1737608885050,15.74407772,248.26,248.19,0.063]
[1737608885363,23.776884,248.25,248.19,0.063]
[1737608885654,0.03,248.26,248.2,18.68555394]
[1737608885858,0.03,248.26,248.2,22.71445394]
[1737608886049,0.03,248.26,248.25,18.68555394]
[1737608887045,0.03,248.26,248.25,330.68555394]
[1737608888760,0.03,248.26,248.21,18.68555394]
[1737608888965,18.71555394,248.26,248.19,0.063]
[1737608889655,23.776884,248.25,248.19,0.063]
[1737608890170,22.71385394,248.24,248.19,0.063]
[1737608891065,4.0283,248.24,248.19,0.063]
[1737608891658,22.71385394,248.24,248.19,0.063]
[1737608893275,4.0581,248.26,248.19,18.74855394]
[1737608894178,0.03,248.26,248.24,18.68555394]
[1737608894954,0.03,248.26,248.24,22.71385394]
[1737608895557,0.03,248.26,248.24,18.68555394]
[1737608896080,0.03,248.26,248.24,22.71375394]
[1737608896286,0.03,248.26,248.24,334.71375394]
[1737608896775,0.03,248.26,248.24,330.68555394]
[1737608898478,0.03,248.26,248.25,4.63221757]
[1737608898655,0.03,248.29,248.28,20.0]
[1737608898862,0.03,248.29,248.28,57.37110788]
[1737608899482,0.03,248.29,248.28,38.68555394]
[1737608900995,0.03,248.29,248.28,42.71325394]
[1737608901478,0.03,248.29,248.28,354.71325394]
[1737608903494,0.03,248.29,248.28,350.68555394]
[1737608904196,0.0001,248.29,248.28,399.37110788]
[1737608904480,0.03,248.31,248.29,8.73223343]
[1737608904793,0.03,248.31,248.3,19.28934521]
[1737608904979,0.03,248.31,248.3,23.99407864]
[1737608905519,0.03,248.46,248.39,20.0]
[1737608905699,0.03,248.46,248.44,18.68555394]
[1737608905985,0.03,248.46,248.42,18.68555394]
[1737608907801,0.03,248.46,248.4,18.68555394]
[1737608908591,18.71555394,248.46,248.38,18.68555394]
[1737608909400,0.03,248.46,248.38,18.68555394]
[1737608909580,0.03,248.46,248.42,18.68555394]
[1737608909782,0.03,248.46,248.42,11.65811411]
[1737608910597,0.03,248.46,248.42,323.65811411]
[1737608910802,0.03,248.46,248.4,11.65811411]
[1737608913476,0.03,248.46,248.44,11.65811411]
[1737608913892,0.03,248.46,248.44,323.65811411]
[1737608914403,0.03,248.46,248.44,11.65811411]
[1737608915496,0.03,248.46,248.45,4.0249]
[1737608916175,0.03,248.46,248.44,11.65811411]
[1737608916601,0.03,248.46,248.44,15.68311411]
[1737608917294,0.03,248.46,248.45,312.0]
[1737608917679,0.03,248.46,248.44,15.68311411]
[1737608920800,0.03,248.46,248.44,327.68311411]
[1737608921698,0.03,248.46,248.44,323.65811411]
[1737608921997,0.03,248.46,248.44,15.68321411]
[1737608922303,0.03,248.46,248.45,0.60370043]
[1737608922690,0.03,248.46,248.44,15.68321411]
[1737608923090,0.03,248.46,248.44,16.28680833]
[1737608924806,0.03,248.46,248.45,312.0]
[1737608928116,0.03,248.51,248.46,44.0866]
[1737608928317,0.03,248.51,248.5,11.65811411]
[1737608928985,12.4124191,248.61,248.5,11.65811411]
[1737608928986,11.65811411,248.75,248.66,30.0]
[1737608929206,11.65811411,248.79,248.68,11.65811411]
[1737608929395,6.3852,248.78,248.68,11.65811411]
[1737608929604,11.65811411,248.77,248.68,11.65811411]
[1737608930110,11.65811411,248.75,248.66,11.65811411]
[1737608930318,11.65811411,248.75,248.64,11.65811411]
[1737608930491,11.65811411,248.75,248.66,11.65811411]
[1737608931307,11.65811411,248.75,248.66,323.65811411]
[1737608931809,15.67831411,248.75,248.66,323.65811411]
[1737608932500,11.65811411,248.73,248.64,11.65811411]
[1737608933987,11.65811411,248.73,248.66,11.65811411]
[1737608934193,11.65811411,248.75,248.66,11.65811411]
[1737608935120,4.0202,248.74,248.66,11.65811411]
[1737608936499,11.65811411,248.73,248.66,11.65811411]
[1737608937616,4.0205,248.72,248.66,11.65811411]
[1737608938093,4.0205,248.72,248.64,11.65811411]
[1737608940107,11.65811411,248.71,248.64,11.65811411]
[1737608940325,11.65811411,248.71,248.57,0.60319236]
[1737608940326,11.65811411,248.67,248.58,11.65811411]
[1737608940494,0.03,248.76,248.69,30.0]
[1737608940695,0.03,248.76,248.73,11.65811411]
[1737608940902,0.03,248.76,248.75,11.65811411]
[1737608941718,0.03,248.76,248.75,15.67821411]
[1737608941917,0.03,248.76,248.75,27.33632822]
[1737608942223,1.5629,248.9,248.76,30.0]
[1737608942416,1.5629,248.9,248.89,11.65811411]
[1737608942922,1.5629,248.9,248.87,11.65811411]
[1737608943302,1.5629,248.9,248.84,11.65811411]
[1737608943510,1.5629,248.9,248.82,11.65811411]
[1737608943711,4.77138534,248.89,248.8,11.65811411]
[1737608943904,4.0178,248.89,248.8,11.65811411]
[1737608944225,13.22101411,248.9,248.82,11.65811411]
[1737608944226,1.5629,248.9,248.82,11.65811411]
[1737608944411,5.5806,248.9,248.82,11.65811411]
[1737608944617,24.53040349,248.89,248.82,11.65811411]
[1737608944822,24.53040349,248.89,248.8,11.65811411]
[1737608945726,17.23871411,248.9,248.82,11.65811411]
[1737608945727,1.5629,248.9,248.82,11.65811411]
[1737608946023,1.5629,248.9,248.84,11.65811411]
[1737608947023,5.5806,248.9,248.81,11.65811411]
[1737608947411,4.0177,248.9,248.81,11.65811411]
[1737608947720,4.0177,248.9,248.83,11.65811411]
[1737608947924,4.0177,248.9,248.7,6.40770094]
[1737608947925,11.65811411,248.89,248.81,11.65811411]
[1737608948123,11.65811411,248.89,248.79,11.65811411]
[1737608949218,4.018,248.88,248.79,11.65811411]
[1737608949524,11.65811411,248.83,248.73,11.65811411]
[1737608949825,23.776884,248.86,248.73,11.65811411]
[1737608949826,11.65811411,248.81,248.73,11.65811411]
[1737608950727,11.65811411,248.83,248.73,11.65811411]
[1737608950927,4.0189,248.82,248.73,11.65811411]
[1737608951311,11.65811411,248.81,248.71,11.65811411]
[1737608951507,23.776884,248.8,248.71,11.65811411]
[1737608951732,11.65811411,248.77,248.69,11.65811411]
[1737608951902,11.65811411,248.79,248.71,11.65811411]
[1737608952105,11.65811411,248.81,248.72,11.65811411]
[1737608952306,11.65811411,248.79,248.7,11.65811411]
[1737608953026,4.0196,248.78,248.7,11.65811411]
[1737608953330,4.0196,248.78,248.73,0.063]
[1737608954035,11.65811411,248.74,248.73,0.063]
[1737608954232,12.41207296,248.74,248.73,0.063]
[1737608954528,11.65811411,248.74,248.73,0.063]
[1737608954839,23.776884,248.73,248.58,11.65811411]
[1737608955018,11.65811411,248.65,248.58,11.65811411]
[1737608955625,11.65811411,248.61,248.52,11.65811411]
[1737608955827,11.65811411,248.57,248.48,4.0873]
[1737608956034,11.65811411,248.57,248.48,0.063]
[1737608956210,11.65811411,248.55,248.48,0.063]
[1737608956535,11.65811411,248.58,248.49,11.65811411]
[1737608956713,11.65811411,248.56,248.48,0.063]
[1737608956916,11.65811411,248.54,248.48,0.063]
[1737608957337,5.0223,248.61,248.48,0.063]
[1737608957338,11.65811411,248.5,248.48,0.063]
[1737608957728,18.65871744,248.49,248.48,0.063]
[1737608958319,19.41346306,248.51,248.48,0.063]
[1737608958636,18.65871744,248.55,248.48,0.063]
[1737608958826,18.65871744,248.57,248.49,18.65871744]
[1737608959845,18.65871744,248.59,248.51,18.65871744]
[1737608960314,18.65871744,248.57,248.49,18.65871744]
[1737608960721,18.65871744,248.55,248.48,0.063]
[1737608961937,18.65871744,248.55,248.48,4.0874]
[1737608962341,18.65871744,248.57,248.48,4.0874]
[1737608964034,18.65871744,248.57,248.49,18.65871744]
[1737608964443,18.65871744,248.57,248.48,4.0874]
[1737608966528,18.65871744,248.53,248.48,0.063]
[1737608966926,18.65871744,248.57,248.48,4.0874]
[1737608967326,18.65871744,248.57,248.49,18.65871744]
[1737608967532,18.65871744,248.57,248.48,4.0874]
[1737608968241,18.65871744,248.57,248.49,18.65871744]
[1737608968544,18.65871744,248.61,248.51,18.65871744]
[1737608969245,18.65871744,248.61,248.53,18.65871744]
[1737608970045,1.5743,248.63,248.55,18.65871744]
[1737608970244,18.65871744,248.65,248.55,18.65871744]
[1737608971638,18.65871744,248.65,248.57,18.65871744]
[1737608972852,18.65871744,248.67,248.59,18.65871744]
[1737608973079,20.31631744,248.69,248.59,18.65871744]
[1737608973438,24.33731744,248.69,248.59,18.65871744]
[1737608974761,24.33731744,248.69,248.59,22.68121744]
[1737608975264,18.65871744,248.67,248.59,22.68121744]
[1737608975432,18.65871744,248.65,248.57,22.68151744]
[1737608977651,11.64424745,248.66,248.57,11.64424745]
[1737608977861,11.64424745,248.68,248.59,11.64424745]
[1737608978237,11.64424745,248.74,248.65,11.64424745]
[1737608978644,13.22254745,248.76,248.67,11.64424745]
[1737608978852,1.5783,248.76,248.67,11.64424745]
[1737608979243,11.64424745,248.78,248.69,11.64424745]
[1737608979652,20.18533123,248.82,248.73,18.60703123]
[1737608979855,18.60703123,248.84,248.75,18.60703123]
[1737608980063,0.75386289,248.86,248.75,18.60703123]
[1737608980064,19.36072018,248.86,248.75,18.60703123]
[1737608980252,18.60703123,248.8,248.71,28.91133123]
[1737608981068,18.60703123,248.78,248.67,18.60703123]
[1737608981973,18.60703123,248.76,248.67,18.60703123]
[1737608982147,18.60703123,248.72,248.63,18.60703123]
[1737608983752,23.776884,248.71,248.63,18.60703123]
[1737608983956,4.0209,248.7,248.63,18.60703123]
[1737608984963,23.776884,248.69,248.61,18.60703123]
[1737608985272,18.60703123,248.68,248.59,18.60703123]
[1737608985447,18.60703123,248.66,248.57,18.67003123]
[1737608985843,18.60703123,248.64,248.57,0.063]
[1737608986062,18.60703123,248.62,248.57,0.063]
[1737608986275,0.75436048,248.61,248.57,0.063]
[1737608986452,18.60703123,248.6,248.57,0.063]
[1737608988156,18.60703123,248.62,248.57,0.063]
[1737608989153,44.78365058,248.64,248.57,0.063]
[1737608989355,44.02931523,248.64,248.57,0.063]
[1737608989559,48.05121523,248.64,248.57,0.063]
[1737608992476,18.60703123,248.62,248.57,0.063]
[1737608992864,18.60703123,248.6,248.57,0.063]
[1737608993081,18.60703123,248.58,248.57,0.063]
[1737608993582,42.38391523,248.58,248.57,0.063]
[1737608994160,43.13846668,248.58,248.57,0.063]
[1737608994875,22.62983123,248.58,248.57,0.063]
[1737608995372,18.60703123,248.6,248.57,0.063]
[1737608995592,22.62933123,248.62,248.57,0.063]
[1737608995879,23.776884,248.61,248.57,0.063]
[1737608996857,27.799284,248.61,248.57,0.063]
[1737608997561,0.75438881,248.6,248.57,0.063]
[1737608997752,18.60703123,248.58,248.57,0.063]
[1737608998070,18.60703123,248.6,248.57,0.063]
[1737608998767,20.25243123,248.64,248.57,0.063]
[1737608998972,18.60703123,248.66,248.57,22.69293123]
[1737608999360,22.62863123,248.66,248.57,22.69293123]
[1737609001559,18.60703123,248.61,248.57,0.063]
[1737609002983,22.62943123,248.61,248.57,0.063]
[1737609003374,18.60703123,248.59,248.57,0.063]
[1737609003569,27.799284,248.61,248.57,0.063]
[1737609003570,18.60703123,248.61,248.57,0.063]
[1737609003883,11.64773561,248.63,248.57,0.063]
[1737609004261,4.0213,248.67,248.58,11.64773561]
[1737609005272,11.64773561,248.66,248.58,11.64773561]
[1737609005471,4.0217,248.65,248.58,11.64773561]
[1737609005690,4.0217,248.65,248.57,0.063]
[1737609005691,18.6358817,248.63,248.57,0.063]
[1737609006978,22.6579817,248.63,248.57,0.063]
[1737609008667,18.6358817,248.61,248.57,0.063]
[1737609009367,22.6579817,248.63,248.57,0.063]
[1737609010560,18.6358817,248.59,248.57,0.063]
[1737609010764,0.75439862,248.58,248.57,0.063]
[1737609011791,18.6358817,248.59,248.57,0.063]
[1737609012577,22.6585817,248.59,248.57,0.063]
[1737609012775,18.6358817,248.59,248.57,0.063]
[1737609013191,22.6582817,248.61,248.57,0.063]
[1737609013773,18.6358817,248.59,248.57,0.063]
[1737609014283,18.6358817,248.63,248.57,0.063]
[1737609014671,22.6579817,248.63,248.57,0.063]
[1737609015894,18.6358817,248.59,248.57,0.063]
[1737609016101,18.6358817,248.61,248.57,0.063]
[1737609018200,4.0225,248.6,248.57,0.063]
[1737609018495,23.776884,248.59,248.57,0.063]
[1737609018680,0.75448595,248.58,248.57,0.063]
[1737609018885,24.53136995,248.58,248.57,0.063]
[1737609019782,24.53136995,248.58,248.57,0.0001]
[1737609019987,26.16236995,248.58,248.57,0.0001]
[1737609020174,30.18516995,248.58,248.57,0.0001]
[1737609020373,31.18516995,248.58,248.57,0.0001]
[1737609021689,31.18516995,248.58,248.48,0.063]
[1737609021690,42.4127657,248.49,248.48,0.063]
[1737609021886,43.16760785,248.49,248.48,0.063]
[1737609022479,44.16760785,248.49,248.48,0.0001]
[1737609022786,45.79860785,248.49,248.48,0.0001]
[1737609023303,2.0,248.47,248.32,0.063]
[1737609023598,18.6358817,248.38,248.32,0.063]
[1737609023900,18.6358817,248.36,248.32,0.063]
[1737609024203,18.6358817,248.34,248.32,0.063]
[1737609024593,23.776884,248.33,248.32,0.063]
[1737609025973,27.803684,248.33,248.32,0.063]
[1737609027605,1.0,248.39,248.32,0.063]
[1737609027606,18.6358817,248.36,248.32,0.063]
[1737609027786,18.6358817,248.4,248.32,18.6988817]
[1737609028126,0.75506377,248.48,248.42,20.0]
[1737609028403,34.27474296,248.63,248.37,30.0]
[1737609028404,18.6358817,248.58,248.48,6.0747]
[1737609028608,18.6358817,248.58,248.49,18.6358817]
[1737609029079,18.6358817,248.56,248.48,6.0747]
[1737609029280,23.776884,248.55,248.45,18.6358817]
[1737609029495,18.6358817,248.56,248.45,18.6358817]
[1737609029701,18.6358817,248.56,248.47,18.6358817]
[1737609029894,42.4127657,248.58,248.47,18.6358817]
[1737609030097,18.6358817,248.6,248.51,18.6358817]
[1737609030510,18.6358817,248.58,248.47,18.6358817]
[1737609030817,18.6358817,248.53,248.43,18.6358817]
[1737609033601,23.776884,248.52,248.42,6.0747]
[1737609033809,18.6358817,248.51,248.42,6.0747]
[1737609034000,18.6358817,248.47,248.39,18.6358817]
[1737609034916,18.6358817,248.47,248.37,18.6358817]
[1737609035087,24.5317086,248.46,248.37,18.6358817]
[1737609035291,18.6358817,248.45,248.36,6.0747]
[1737609035515,18.6358817,248.49,248.39,18.6358817]
[1737609036087,23.776884,248.44,248.35,18.6358817]
[1737609036311,18.6358817,248.45,248.35,18.6358817]
[1737609037195,18.6358817,248.43,248.35,18.6358817]
[1737609037597,23.776884,248.42,248.33,18.6358817]
[1737609037799,18.6358817,248.41,248.32,0.063]
[1737609038398,4.0257,248.4,248.32,0.063]
[1737609039713,18.6358817,248.37,248.32,0.063]
[1737609039910,23.776884,248.36,248.32,0.063]
[1737609040313,18.6358817,248.35,248.32,0.063]
[1737609040631,4.0267,248.34,248.32,0.063]
[1737609041301,23.776884,248.33,248.32,0.063]
[1737609041504,43.16795583,248.33,248.32,0.063]
[1737609044612,43.16795583,248.33,248.32,0.0001]
[1737609045206,44.77816283,248.33,248.32,0.0001]
[1737609046100,46.77816283,248.33,248.32,0.0001]
[1737609048168,1.0,248.29,248.24,0.063]
[1737609048423,42.4127657,248.25,248.24,0.063]
[1737609049403,46.4408657,248.25,248.24,0.063]
[1737609050129,19.39141968,248.28,248.24,0.063]
[1737609050130,18.6358817,248.28,248.24,0.063]
[1737609050330,20.2987817,248.35,248.27,18.6358817]
[1737609050527,24.3253817,248.35,248.27,18.6358817]
[1737609050703,23.776884,248.34,248.27,18.6358817]
[1737609051323,4.0268,248.33,248.27,18.6358817]
[1737609053241,4.0568,248.33,248.27,18.6358817]
[1737609053630,4.0568,248.33,248.25,18.6358817]
[1737609053944,23.776884,248.32,248.25,18.6358817]
[1737609055050,0.03,248.33,248.24,4.0913]
[1737609055226,0.03,248.33,248.3,18.6358817]
[1737609056838,0.03,248.33,248.26,4.0279]
[1737609056839,0.03,248.33,248.32,18.6358817]
[1737609059154,0.03,248.33,248.28,18.6358817]
[1737609059527,0.03,248.33,248.26,18.6358817]
[1737609062452,0.03,248.33,248.28,18.6358817]
[1737609062750,0.03,248.33,248.32,18.6358817]
[1737609063330,0.03,248.33,248.3,18.6358817]
[1737609063647,0.03,248.33,248.26,18.6358817]
[1737609064053,0.03,248.33,248.3,18.6358817]
[1737609064236,0.03,248.33,248.32,18.6358817]
[1737609065458,0.03,248.33,248.32,18.6988817]
[1737609067349,0.03,248.33,248.32,22.7258817]
[1737609067658,0.03,248.33,248.32,23.32991244]
[1737609069753,0.03,248.33,248.32,29.48331244]
[1737609070361,0.03,248.33,248.32,341.48331244]
[1737609070677,0.03,248.33,248.32,340.8792817]
[1737609070841,0.03,248.33,248.32,28.8792817]
[1737609072341,18.6358817,248.5,248.35,20.0]
[1737609072653,18.6358817,248.5,248.43,18.6358817]
[1737609072654,23.776884,248.49,248.43,18.6358817]
[1737609072837,23.776884,248.49,248.41,18.6358817]
[1737609073463,27.801184,248.49,248.41,18.6358817]
[1737609074137,1.6578,248.52,248.45,18.6358817]
[1737609074960,5.6816,248.52,248.45,18.6358817]
[1737609075259,0.03,248.53,248.47,18.6358817]
[1737609076659,0.03,248.52,248.47,18.6358817]
[1737609078738,18.6358817,248.48,248.41,18.6358817]
[1737609079244,18.6358817,248.43,248.35,18.6358817]
[1737609079447,18.6358817,248.43,248.33,18.6358817]
[1737609079855,18.6358817,248.41,248.33,18.6358817]
[1737609080068,23.776884,248.4,248.33,18.6358817]
[1737609080358,18.6358817,248.43,248.35,18.6358817]
[1737609080571,1.6578,248.46,248.39,18.6358817]
[1737609081359,5.6826,248.46,248.39,18.6358817]
[1737609081661,27.801384,248.48,248.41,18.6358817]
[1737609081859,22.6598817,248.51,248.43,18.6358817]
[1737609082041,23.776884,248.5,248.43,18.6358817]
[1737609082238,1.6582,248.52,248.45,18.6358817]
[1737609082463,1.6582,248.52,248.47,18.6358817]
[1737609083253,0.03,248.52,248.49,18.6358817]
[1737609083755,0.03,248.52,248.49,11.65276251]
[1737609085763,0.03,248.52,248.5,18.64195958]
[1737609087653,0.03,248.52,248.48,18.64195958]
[1737609092470,0.03,248.52,248.46,18.64195958]
[1737609093347,23.806884,248.52,248.46,18.64195958]
[1737609093552,23.776884,248.5,248.44,18.64195958]
[1737609093749,18.64195958,248.49,248.4,18.64195958]
[1737609094154,23.776884,248.48,248.4,18.64195958]
[1737609094469,1.5507,248.52,248.44,18.64195958]
[1737609094666,5.5746,248.52,248.44,18.64195958]
[1737609095678,5.5746,248.52,248.46,18.64195958]
[1737609097271,18.64195958,248.49,248.4,18.64195958]
[1737609097478,18.64195958,248.47,248.4,18.64195958]
[1737609097675,18.64195958,248.47,248.38,18.64195958]
[1737609098255,23.776884,248.46,248.38,18.64195958]
[1737609098475,18.64195958,248.45,248.38,18.64195958]
[1737609099380,4.0251,248.44,248.38,18.64195958]
[1737609100777,46.44414358,248.43,248.36,18.64195958]
[1737609100961,46.44414358,248.43,248.33,18.70495958]
[1737609101292,18.64195958,248.41,248.33,18.70495958]
[1737609101852,22.66725958,248.43,248.35,18.64195958]
[1737609102278,4.0253,248.43,248.37,18.64195958]
[1737609103075,1.6163,248.42,248.35,18.64195958]
[1737609103279,1.6163,248.42,248.33,18.70495958]
[1737609103656,18.64195958,248.41,248.33,18.70495958]
[1737609104174,18.64195958,248.39,248.33,0.063]
[1737609105169,22.66795958,248.39,248.33,0.063]
[1737609105681,15.6957822,248.39,248.33,0.063]
[1737609106064,11.6697822,248.37,248.33,0.063]
[1737609106269,11.6697822,248.35,248.33,0.063]
[1737609106878,28.55871233,248.34,248.33,0.063]
[1737609107268,27.803584,248.34,248.33,0.063]
[1737609108657,29.419884,248.34,248.33,0.063]
[1737609109169,6.0772,248.41,248.33,0.063]
[1737609109482,15.6956822,248.39,248.33,0.063]
[1737609109787,11.6697822,248.39,248.33,0.063]
[1737609110083,23.776884,248.39,248.33,0.063]
[1737609110390,1.6163,248.4,248.33,4.0898]
[1737609110686,0.75498557,248.47,248.33,4.0898]
[1737609110687,15.6947822,248.45,248.36,15.6960822]
[1737609111179,11.6697822,248.45,248.36,15.6960822]
[1737609111484,23.776884,248.46,248.36,15.6960822]
[1737609111979,11.6697822,248.45,248.36,15.6960822]
[1737609113179,11.6697822,248.43,248.34,15.6963822]
[1737609113683,11.6697822,248.41,248.33,0.063]
[1737609114577,15.6954822,248.41,248.33,0.063]
[1737609115383,0.03,248.45,248.36,11.6697822]
[1737609115772,27.831884,248.45,248.36,11.6697822]
[1737609115965,0.03,248.45,248.38,11.6697822]
[1737609116167,0.03,248.45,248.4,11.6697822]
[1737609117673,0.03,248.45,248.37,28.69717028]
[1737609119183,0.03,248.45,248.37,22.68607028]
[1737609119483,0.03,248.45,248.37,18.65997028]
[1737609119888,0.03,248.45,248.37,16.65997028]
[1737609120388,18.68997028,248.45,248.35,18.65997028]
[1737609120568,18.65997028,248.41,248.33,18.72297028]
[1737609120770,4.0257,248.4,248.33,18.72297028]
[1737609121288,4.0257,248.4,248.33,0.063]
[1737609123066,43.19185911,248.39,248.33,0.063]
[1737609123395,23.776884,248.36,248.33,0.063]
[1737609123783,23.776884,248.34,248.33,0.063]
[1737609124590,18.65997028,248.35,248.33,0.063]
[1737609124764,19.41523058,248.39,248.33,0.063]
[1737609125185,23.776884,248.38,248.33,0.063]
[1737609125396,27.802884,248.38,248.33,0.063]
[1737609126191,4.0258,248.4,248.33,0.063]
[1737609126394,18.65997028,248.41,248.33,0.063]
[1737609126592,22.68567028,248.41,248.33,0.063]
[1737609127497,23.776884,248.4,248.33,0.063]
[1737609128292,1.5813,248.44,248.39,18.65997028]
[1737609128494,0.03,248.45,248.39,18.65997028]
[1737609128691,4.055,248.45,248.37,18.65997028]
[1737609128885,23.776884,248.44,248.35,18.65997028]
[1737609129079,22.71497028,248.45,248.35,18.65997028]
[1737609129398,23.776884,248.44,248.35,18.65997028]
[1737609129576,42.43685428,248.42,248.33,0.063]
[1737609129976,23.776884,248.42,248.33,0.063]
[1737609130198,4.055,248.45,248.36,18.65997028]
[1737609130395,23.776884,248.44,248.36,18.65997028]
[1737609130592,4.055,248.45,248.36,18.65997028]
[1737609130976,23.776884,248.44,248.36,18.65997028]
[1737609131492,0.03,248.45,248.36,22.68627028]
[1737609131696,0.03,248.45,248.38,18.65997028]
[1737609132494,4.055,248.45,248.38,18.65997028]
[1737609132692,23.776884,248.44,248.36,18.65997028]
[1737609132996,42.43685428,248.44,248.34,18.65997028]
[1737609133385,4.0252,248.43,248.34,18.65997028]
[1737609133780,23.776884,248.42,248.34,18.65997028]
[1737609133986,42.43685428,248.42,248.33,0.063]
[1737609134885,4.0252,248.43,248.34,18.65997028]
[1737609135090,4.055,248.45,248.36,18.65997028]
[1737609135477,23.776884,248.44,248.36,18.65997028]
[1737609136093,23.776884,248.44,248.36,22.68627028]
[1737609136301,23.776884,248.44,248.36,18.65997028]
[1737609136500,42.43685428,248.44,248.36,18.65997028]
[1737609136801,42.43685428,248.44,248.34,18.65997028]
[1737609137477,23.806884,248.42,248.34,18.65997028]
[1737609137885,42.46685428,248.42,248.34,18.65997028]
[1737609139504,4.0256,248.41,248.34,18.65997028]
[1737609139705,4.0256,248.41,248.33,11.72966886]
[1737609139876,23.776884,248.36,248.33,0.063]
[1737609140080,11.66666886,248.35,248.33,0.063]
[1737609140576,23.776884,248.34,248.33,0.063]
[1737609141606,27.803584,248.34,248.33,0.063]
[1737609141781,46.48369825,248.34,248.33,0.063]
[1737609145405,47.23904593,248.34,248.33,0.063]
[1737609147209,18.68011425,248.27,248.24,0.063]
[1737609147411,18.68011425,248.25,248.24,0.063]
[1737609147585,18.68011425,248.29,248.24,0.063]
[1737609147781,18.68011425,248.31,248.24,0.063]
[1737609147986,18.68011425,248.33,248.24,0.063]
[1737609148221,4.0267,248.34,248.25,18.68011425]
[1737609148412,42.45699825,248.33,248.25,18.68011425]